Cogmind - Beta 16 @@@ ROGUE MODE // 2025.12.31 @ 15:10:06 Player: Over-in Result: Destroyed by D1-07G(R) with Subdweller Laser Performance ------------- Evolutions (0) 0 Regions Visited (3) 600 Robots Destroyed (39) 195 Value Destroyed (901) 901 Prototype IDs (0) 0 Alien Tech Used (0) 0 Bonus (14) 14 TOTAL SCORE: 1710 Bonus ------- Follower Combat Kills 14 Cogmind --------- Core Integrity 0/250 Matter 201/300 Energy 172/200 System Corruption 1% Temperature Cool (6) Movement Rolling (125) Ox3 Location -10/Subcaves Parts ------- > --- POWER (1) -------- Subdweller Power Source > --- PROPULSION (2) --- Wheel > --- UTILITY (2) ------ Large Storage Unit Subdweller Optics > --- WEAPON (2) ------- Small Laser Beamcaster > --- INVENTORY (15) --- Aluminum Leg Aluminum Leg Carbon-fiber Leg Carbon-fiber Leg Wheel Heat Sink Small Battery (100) Signal Interpreter Terrain Scanner Weapon Shielding Peak State ------------ > --- POWER ------------ Subdweller Power Source > --- PROPULSION ------- Wheel Compact Wheel > --- UTILITY ---------- Large Storage Unit Signal Interpreter > --- WEAPON ----------- Medium Laser Beamcaster > --- INVENTORY -------- Aluminum Leg Aluminum Leg Carbon-fiber Leg Carbon-fiber Leg Wheel Heat Sink Small Battery Subdweller Optics Signal Interpreter Terrain Scanner Weapon Shielding Makeshift System Shield Small Laser Grenade Launcher Rocket Launcher [Rating: 14] Favorites ----------- Power Ion Engine Engine Ion Engine Propulsion Wheel Leg Aluminum Leg Wheel Wheel Utility Signal Interpreter Device Subdweller Optics Storage Large Storage Unit Processor Signal Interpreter Hackware Makeshift System Shield Weapon Medium Laser Energy Gun Medium Laser Launcher Grenade Launcher Build | -11 -10 -10 -10 ------- Run | Yrd Mat Min Sub Slots Evolved . | . . . . Power . | . . . . Propulsion . | . . . . Utility . | . . . . Weapon . | . . . . Parts Attached 19 | 7 6 1 5 Power 2 | 1 . . 1 Engine 2 | 1 . . 1 Core . | . . . . Reactor . | . . . . Propulsion 5 | 4 1 . . Treads . | . . . . Leg 2 | 2 . . . Wheel 3 | 2 1 . . Hover . | . . . . Flight . | . . . . Utility 6 | . 4 . 2 Device 2 | . 1 . 1 Storage 2 | . 2 . . Processor 1 | . 1 . . Hackware 1 | . . . 1 Protection . | . . . . Artifact . | . . . . Weapon 6 | 2 1 1 2 Energy Gun 3 | 2 . 1 . Energy Cannon . | . . . . Ballistic Gun . | . . . . Ballistic Cannon . | . . . . Launcher 3 | . 1 . 2 Special Weapon . | . . . . Impact Weapon . | . . . . Slashing Weapon . | . . . . Piercing Weapon . | . . . . Special Melee Weapon . | . . . . Unidentified Prototypes . | . . . . Parts Lost 7 | . . 1 6 Power 1 | . . . 1 Propulsion 1 | . . . 1 Utility 1 | . . . 1 Weapon 4 | . . 1 3 Highest Loss Streak 3 | . . 1 3 To Critical Strikes . | . . . . Average Backups 10 | 1 7 10 14 Power . | . . . . Propulsion 3 | 1 2 3 5 Utility 4 | . 3 5 6 Weapon 1 | . . 1 2 Tool/Special . | . . . . Unused Backups 7 | . . . 7 Power . | . . . . Propulsion 3 | . . . 3 Utility 4 | . . . 4 Weapon . | . . . . Tool/Special . | . . . . Average Slot Usage (%) 93 | . 99 95 86 Engine 11 | . 14 14 8 Wheel 25 | . 28 28 22 Device 1 | . 1 . 2 Storage 14 | . 14 14 14 Processor 12 | . 11 14 11 Energy Gun 17 | . 17 16 19 Launcher 8 | . 10 7 7 Peak Build Rating 14 | 5 7 12 14 Average Rating 9 | 3 6 8 11 On Entrance 5 | . 5 7 11 Avg Prop Armor Cover (%) . | . . . . Naked Turns . | . . . . Heaviest Build 34 | 8 30 33 34 Greatest Support 26 | 20 26 26 26 Greatest Overweight (x) 3 | . 1 1 3 Average Overweight (x) 1 | . . 1 1 Largest Inventory Capacity 15 | 5 15 15 15 Average Capacity 13 | 5 11 15 15 Most Carried 15 | 5 9 14 15 Average Carried 10 | 2 7 10 14 Final Capacity 15 | 5 15 15 15 Final Carried 14 | 3 9 14 10 Class Distribution -------------------- 100% | Mutant Dominant Class ---------------- Mutant | -10/Materials Mutant | -10/Mines Mutant | -10/Subcaves Resources | -11 -10 -10 -10 ----------- Run | Yrd Mat Min Sub Matter Collected 823 | 221 283 143 176 Remotely . | . . . . Salvage Created 733 | . 412 121 200 Parts 57 | . 27 14 16 Haulers Intercepted 2 | . 2 . . Recyclers Shooed 1 | . 1 . . Parts Field Recycled . | . . . . Retrieved Matter . | . . . . Parts Self-Destructed 15 | . . . 15 Prevented . | . . . . Parts Restored . | . . . . Kills | -11 -10 -10 -10 ------- Run | Yrd Mat Min Sub Combat Hostiles Destroyed 30 | . 12 8 10 Guns 8 | . 4 2 2 AOE 22 | . 8 6 8 Classes Destroyed 8 | . 6 . 2 Builder 3 | . 2 1 . Hauler 2 | . 2 . . Operator 1 | . 1 . . Watcher 3 | . 3 . . Swarmer 13 | . 3 6 4 Grunt 11 | . 9 2 . Sentry 1 | . . . 1 Subdweller 5 | . . . 5 Best Kill Streak 12 | . 12 4 4 Combat Bots Only 6 | . 6 3 4 Max Kills in Single Turn 4 | . 3 3 4 Gunslinging . | . . . . Exploded 4 | . 2 2 4 Melee . | . . . . Uniques/NPCs Destroyed . | . . . . Combat | -11 -10 -10 -10 -------- Run | Yrd Mat Min Sub Hostile Shots Fired 77 | . 26 15 36 Missed 30 | . 12 6 12 Hits 47 | . 14 9 24 Projectile 47 | . 14 9 24 Critical Strikes 1 | . . 1 . Damage Taken 831 | . 245 153 433 Core 267 | . 119 43 105 Absorbed by Shields . | . . . . Core Remaining (%) 100 | 100 . . . Volleys Fired 63 | . 36 9 18 Largest 2 | . 2 2 2 Hottest 125 | . 90 90 125 Shots Fired 121 | . 68 20 33 Gun 75 | . 46 12 17 Cannon . | . . . . Launcher 46 | . 22 8 16 Special . | . . . . Kinetic . | . . . . Thermal 75 | . 46 12 17 Explosive 46 | . 22 8 16 Electromagnetic . | . . . . Robot Hit Streak 11 | . 6 9 11 Robot Miss Streak 6 | . 6 2 1 Penetration Max . | . . . . Secondary Targets . | . . . . Shots Hit Robots 58 | . 23 10 25 Core Hits 58 | . 31 12 15 Critical Kills . | . . . . Critical Parts Destroyed . | . . . . Critical Strikes 5 | . 4 . 1 Burn 5 | . 4 . 1 Melee Attacks . | . . . . Impact . | . . . . Slashing . | . . . . Piercing . | . . . . Sneak Attacks . | . . . . Combat Hostiles . | . . . . Follow-up Attacks . | . . . . Damage Inflicted 2952 | . 1236 571 1145 Guns 625 | . 284 82 259 Cannons . | . . . . Explosions 2326 | . 951 489 886 Melee . | . . . . Ramming 1 | . 1 . . Kinetic . | . . . . Thermal 625 | . 284 82 259 Explosive 2326 | . 951 489 886 Electromagnetic . | . . . . Impact . | . . . . Slashing . | . . . . Piercing . | . . . . Highest Corruption 1 | . 1 1 1 Average Corruption 1 | . 1 1 1 Corruption Purged . | . . . . Corruption Blocked . | . . . . Effects 10 | . 2 4 4 Message Errors 2 | . . . 2 Heat Flow Errors 2 | . 1 1 . Energy Discharges 1 | . . . 1 Data Loss (major) 1 | . . . 1 Misfires 3 | . 1 2 . Alerts 1 | . . 1 . Overload Shots . | . . . . Overflow Damage 72 | . 18 32 22 Projectiles . | . . . . Explosions 72 | . 18 32 22 Melee . | . . . . Knockbacks . | . . . . Impact . | . . . . Kinetic . | . . . . Secondary . | . . . . Self-Inflicted Damage 226 | . 89 64 73 Shots 7 | . 3 2 2 Rammed 1 | . 1 . . Targets Rammed 1 | . 1 . . Kicked . | . . . . Crushed . | . . . . Highest Temperature 254 | . 254 182 24 Average Temperature 63 | . 75 40 12 Received Heat Transfer 171 | . 63 15 93 Siege Activations . | . . . . Martial Activations . | . . . . Shielding Activations . | . . . . Robots Disrupted . | . . . . Combat Hostiles . | . . . . Robots Corrupted . | . . . . Combat Hostiles . | . . . . Parts Fried . | . . . . Impact Corruptions . | . . . . Robots Melted . | . . . . Combat Hostiles . | . . . . Parts Melted 2 | . . . 2 Heat Transferred 1878 | . 1087 235 556 Parts Sabotaged . | . . . . Parts Stolen . | . . . . Parts Stripped . | . . . . Power Chain Reactions . | . . . . Alert | -11 -10 -10 -10 ------- Run | Yrd Mat Min Sub Maximum Alert Level 1 | . 1 . . Low Security (%) 68 | 100 38 100 . Level 1 31 | . 61 . . Level 2 . | . . . . Level 3 . | . . . . Level 4 . | . . . . Level 5 . | . . . . High Security . | . . . . Max Security . | . . . . Peak Influence 306 | . 306 196 . Initial 76 | . . 76 . Average 137 | . 174 108 . Influence Increases 977 | . 454 333 190 Destroy 0b10 Robot/C 540 | . 240 200 100 Destroy 0b10 Robot/NC 45 | . 40 5 . Destroy Leader 90 | . 60 30 . Allied During Kill 3 | . . 3 . Successful Hack 2 | . 2 . . Disable Machine 45 | . 15 30 . Destroy Structure 147 | . 97 50 . Lose Combat Pursuer 105 | . . 15 90 Influence Decreases 899 | . 258 432 209 Entered New Map 171 | . . 120 51 Time Decay 648 | . 258 282 108 Lost Part 60 | . . 10 50 Lost Ally 20 | . . 20 . Squads Dispatched 2 | . 2 . . Investigation . | . . . . Extermination . | . . . . Reinforcement 2 | . 2 . . Assault . | . . . . Garrison . | . . . . Intercept . | . . . . Searches Triggered . | . . . . Construction Impeded . | . . . . Haulers Reinforced . | . . . . Active Scanning Responses . | . . . . Cargo Convoy Interrupts . | . . . . Stealth | -11 -10 -10 -10 --------- Run | Yrd Mat Min Sub Distress Signals 1 | . 1 . . Communications Jammed . | . . . . Distress Signals . | . . . . Times Spotted 43 | . 17 11 15 Peak Tracking Total 7 | . 3 3 7 Tactical Retreats 3 | . . 1 2 Traps | -11 -10 -10 -10 ------- Run | Yrd Mat Min Sub Traps Triggered 1 | . 1 . . Indirectly . | . . . . Trap Hack Attempts . | . . . . Triggered . | . . . . Disarmed . | . . . . Reprogrammed . | . . . . Reused . | . . . . Traps Extracted . | . . . . Installed . | . . . . Triggered . | . . . . Machines | -11 -10 -10 -10 ---------- Run | Yrd Mat Min Sub Machines Disabled 3 | . 1 2 . Max in Single Turn 1 | . 1 1 . Machines Repaired . | . . . . Machines Dismantled . | . . . . Machines Sabotaged . | . . . . Overloaded Fab Kills . | . . . . Hacking | -11 -10 -10 -10 --------- Run | Yrd Mat Min Sub Machines Accessed 4 | . 2 . 2 Terminals 2 | . 2 . . Fabricators . | . . . . Repair Stations . | . . . . Recycling Units . | . . . . Scanalyzers . | . . . . Garrison Access . | . . . . Total Hacks 10 | . 7 . 3 Successful 8 | . 5 . 3 Failed 2 | . 2 . . Catastrophic . | . . . . Database Lockouts . | . . . . Manual . | . . . . Terminals 7 | . 7 . . Fabricators . | . . . . Repair Stations . | . . . . Recycling Units . | . . . . Scanalyzers . | . . . . Garrison Access . | . . . . Terminal Hacks 8 | . 5 . 3 Record 6 | . 5 . 1 Open Door 1 | . . . 1 Release Object 1 | . . . 1 Fabricator Hacks . | . . . . Repair Station Hacks . | . . . . Recycling Unit Hacks . | . . . . Scanalyzer . | . . . . Garrison Access Hacks . | . . . . Unauthorized Hacks . | . . . . Terminals . | . . . . Fabricators . | . . . . Repair Stations . | . . . . Recycling Units . | . . . . Scanalyzers . | . . . . Garrison Access . | . . . . Data Cores Recovered . | . . . . Used . | . . . . Hacking Detections 2 | . 2 . . Full Trace Events . | . . . . Feedback Events . | . . . . Feedback Blocked . | . . . . Robot Schematics Acquired . | . . . . Robots Built . | . . . . Authchips . | . . . . Time . | . . . . Total Robot Build Rating . | . . . . Part Schematics Acquired . | . . . . Parts Built . | . . . . Authchips . | . . . . Time . | . . . . Total Part Build Rating . | . . . . Part Studies Acquired . | . . . . Parts Repaired . | . . . . Time . | . . . . Parts Recycled . | . . . . Recycled Matter . | . . . . Retrieved Matter . | . . . . Retrieved Components . | . . . . Parts Scanalyzed . | . . . . Part Schematics Acquired . | . . . . Parts Damaged . | . . . . Bothacking | -11 -10 -10 -10 ------------ Run | Yrd Mat Min Sub Used RIF Installer . | . . . . Robots Hacked . | . . . . Non-combat . | . . . . Combat . | . . . . Robot Hacks Applied . | . . . . Relay Couplers Released . | . . . . Fabnet Peak Effective % . | . . . . Robots Rewired . | . . . . Allies Hacked . | . . . . Hacks Repelled . | . . . . Allies | -11 -10 -10 -10 -------- Run | Yrd Mat Min Sub Total Allies 1 | . . 1 . Largest Group 1 | . . 1 . Highest-Rated Group 31 | . . 31 . Highest-Rated Ally 31 | . . 31 . Total Orders . | . . . . Ally Attacks 9 | . . 9 . Total Damage 85 | . . 85 . Kills 2 | . . 2 . Allies Corrupted . | . . . . Allies Melted . | . . . . Intel | -11 -10 -10 -10 ------- Run | Yrd Mat Min Sub Active Infowar (turns) 227 | . 92 . 135 Optics 135 | . . . 135 Terrain 92 | . 92 . . Robot Analysis Total . | . . . . Derelict Logs Recovered 2 | . . 1 1 Drone Launches . | . . . . Drone Recoveries . | . . . . Exploration | -11 -10 -10 -10 ------------- Run | Yrd Mat Min Sub Turns Passed 2239 | 54 712 636 837 Spaces Moved 1929 | 51 623 567 688 Core 18 | 18 . . . Treads . | . . . . Legs 7 | 7 . . . Wheels 1904 | 26 623 567 688 Hover . | . . . . Flight . | . . . . Fastest Speed 50 | 50 80 105 105 Average Speed 103 | 74 94 105 111 Slowest Speed 125 | 120 105 105 125 Overloaded Moves . | . . . . Propulsion Burnouts . | . . . . Robots Hopped . | . . . . Potential Cave-ins . | . . . . Cave-ins Triggered . | . . . . Exploration Rate (%) 57 | 4 79 98 48 Regions Visited 3 Branch Regions 2 Pre-discovered Areas . | . . . . Known Exits Taken 2 | . 1 1 . Unknown Exits Taken 1 | 1 . . . Scrap Searched 1 | . . 1 . Spaces Dug . | . . . . Terrain Destroyed 259 | . 117 55 87 Melee . | . . . . Projectile . | . . . . AOE 259 | . 117 55 87 Terrain Rammed . | . . . . Walls Destroyed . | . . . . Machines Disabled . | . . . . Actions | -11 -10 -10 -10 --------- Run | Yrd Mat Min Sub Total 2053 | 65 677 588 723 Wait 6 | . 1 5 . Move 1926 | 50 622 566 688 Hop . | . . . . Pick Up 24 | 8 9 5 2 Fast Attach 1 | . . . 1 Attach 13 | 5 2 . 6 Detach 1 | . . . 1 Swap 15 | 2 4 3 6 Drop 2 | . 2 . . Fire 63 | . 36 9 18 Melee . | . . . . Ram 1 | . 1 . . Kick . | . . . . Crush . | . . . . Escape Stasis . | . . . . Rewire . | . . . . Trap . | . . . . Miscellaneous 1 | . . . 1 Route ------- -11/Scrapyard -10/Materials (discovered 4 exits: *Mat x3 / *Min) -10/Mines (discovered 3 exits: *Mat x2 / *Sub) -10/Subcaves History --------- Turn | Location | Event 10 | -11/Scrapyard | Discovered new exit (range 14) 55 | -11/Scrapyard | Entered Materials 163 | -10/Materials | Discovered new exit (range 3) 166 | -10/Materials | Identified exit to Materials 231 | -10/Materials | Discovered new exit (range 13) 244 | -10/Materials | Identified exit to Mines 304 | -10/Materials | Build established: Mutant 349 | -10/Materials | Discovered exit to Materials (range 16) 457 | -10/Materials | Discovered exit to Materials (range 16) 767 | -10/Materials | Entered Mines 797 | -10/Mines | Discovered exit to Materials (range 11) 913 | -10/Mines | Discovered new exit (range 6) 918 | -10/Mines | Identified exit to Subcaves 946 | -10/Mines | Core integrity fell below 50% 956 | -10/Mines | Discovered exit to Materials (range 13) 1067 | -10/Mines | Received a Mining Laser from a helpful Derelict 1279 | -10/Mines | Received a Rocket Launcher from a helpful Derelict 1403 | -10/Mines | Entered Subcaves 1418 | -10/Subcaves | A swath of the cavern ceiling suddenly collapsed 1456 | -10/Subcaves | Core integrity fell below 20% 1544 | -10/Subcaves | Shifting Twisted Machinery released Mak. System Shield 1595 | -10/Subcaves | Shifting Twisted Machinery released Scrap Shield 1810 | -10/Subcaves | Learned Materials terminal intel 2008 | -10/Subcaves | Released subatomizers from SUBCON Basin 2128 | -10/Subcaves | Lost 3 parts (1u2w) 2240 | -10/Subcaves | Destroyed by D1-07G(R) with Subdweller Laser Last Messages --------------- 02097_ Destroyed Signal Interpreter. 02097_ Grenade Launcher destroyed. 02097_ Destroyed Grenade Launcher. 02097_ Destroyed Flight Unit. 02097_ S-10 Pest destroyed. 02097_ Rocket Launcher destroyed. 02105_ Discarded Mak. System Shield. 02106_ Lgt. Assault Rifle fries itself beyond repair. 02108_ Flight Unit fries itself beyond repair. 02135_ System corrupted: Substantial component data lost. 02212_ V5-J4B(R) suffers critical hit (Burn). 02217_ Med. Laser destroyed. 02223_ Sub. Monowheel melted. 02223_ Sub. Power Source melted. 02223_ V5-J4B(R) destroyed. 02228_ Acquired 52 matter. 02233_ Subatomizers dissect the Disposable Heat Sink. Map ----- +----------------------------------------------------+ | ?????????????????????????????????????????????????? | | ?????????????????????????????????????????????????? | | ?????????????????????????????????????????????????? | | ?????????????????????????????????????????????????? | | ?????????????????????????????????????????????????? | | ?????????????????????????????????????????????????? | | ?????????????????????????????????????????????????? | | ?????????????????????????????????????????????????? | | ?????????????????????????????????????????????????? | | ?????????????????????????????????????????????????? | | ?????????????????????????????????????????????????? | | ?????????????###?????????????????????????????????? | | ?????????????# ##????????????????????????????????? | | ????????????## ###????????#?????????????????????? | | ???????????## #??????? #???"?????????????????? | | ?????##???## ####### "#?# """"??????????????? | | ?????# #### ## # #" "??????????????? | | ?????# ## " " "???????????????? | | ?????# """"" """????????????????? | | ?????## " """"?????????????????? | | ####?## ######### R## ####"""?????????????????? | | # ## ##???????## !R##?????????????????????????? | | ?# #????????## &R###???##??????????????????? | | ?# #????????# #?## #??????????????????? | | ?# #####????## ### ##?????????????????? | | ?#### ##????## @ ##????????????????? | | ????# #?????## #????????????????? | | ????## #??????# #????????????????? | | ?????# ##?????# ##????????????????? | | ?????## ## ##?# ##?????????????????? | | ?????## #?# ##??????????????????? | | ?????# ##?# ##???????????????????? | | ????## ##?# #????????????????????? | | ???## ###### #??## #???????????????????? | | ??## #????? #??# #??????????????????? | | ### #?????# #? #??????????????????? | | #??????# #??????????????????? | | ##???????### #?????????????????? | | ### ##?????#### #?????????????????? | | ####?????## #?????????????????? | | #??????## #?????????????????? | | #??????# ?????????????????? | | ### ##??????# ????????????????? | | #?# #####??????? ???????????????? | | #? ####??????????? ## ???????????????? | | ##?# #?????????????? #? ??????????????? | | #??# ?????????????? ? ?????????????? | | #??# ????????????? ? ????????????????? | | #??? ##???????????? ? #??????????????????? | | ????# #????????????? ???????????????????????? | +----------------------------------------------------+ Best States ------------- Heat Dissipation 25 Energy Generation 15 Energy Capacity 250 Matter Stores 300 Matter Capacity 300 Sight Range 21 Terrain Scan Range 14 Terrain Scan Density 10 Evasion (%) 50 Item Schematics ----------------- None Robot Schematics ------------------ None Fabricated ------------ Nothing Repaired ---------- Nothing Studied --------- None Alien Tech Used ----------------- None Achievements -------------- Maybe Next Time I'll Detach My Launcher Challenges ------------ None Game ------ Seed BarrageMiniDrillbomb Manual? 0 Play Time 00:22:36 Cumulative 12.6 hours Start 2025.12.31 @ 14:48:23 End 2025.12.31 @ 15:10:06 Sessions 1 Manual Loads 0 Difficulty Rogue Special Mode None Game No. 19 Rogue 19 Adventurer 0 Explorer 0 Win Type - Total 0 Types 0/0/0/0/0/0/0/0/0/0 Lore% 10 Gallery% 15 Achievement% 11 Wizard Run 0 Options --------- Layout 1 ASCII 0 Keyboard 0 Movement Mouse Keybinds 0 Fullscreen 2 Font 24/Smallcaps Map View 50x35 Zoom Use 0% Tactical HUD 1 Map Filters NONE Filters NONE Steam 1 RUN: 55c91443-00cd-4749-b3f3-3ab04b9866c1